fUST/lending_fUST_20260119
["ID","MTS","AMOUNT","RATE_DAILY","PERIOD"]
[402699387,1768807005536,-500.0,0.0003415,30]
[402699390,1768807005597,-151.0,0.0003415,31]
[402699391,1768807005655,-151.0,0.0003415,31]
[402699394,1768807005710,-151.0,0.0003415,31]
[402699396,1768807005765,-151.0,0.0003415,31]
[402699397,1768807005820,-151.0,0.0003415,31]
[402699399,1768807005877,-151.0,0.0003415,31]
[402699401,1768807005929,-151.0,0.0003415,31]
[402699403,1768807005982,-151.0,0.0003415,31]
[402699405,1768807006034,-151.0,0.0003415,31]
[402699407,1768807006081,-282.952735,0.0003415,40]
[402699409,1768807006130,-243.48264022,0.0003415,31]
[402699411,1768807006178,-500.0,0.0003415,120]
[402699417,1768807006428,928.89,0.0003415,120]
[402699422,1768807006596,928.89,0.0003415,120]
[402699431,1768807007087,928.89,0.0003415,120]
[402699434,1768807007145,928.89,0.0003415,120]
[402699436,1768807007201,928.89,0.0003415,120]
[402699437,1768807007261,928.89,0.0003415,120]
[402699439,1768807007324,928.89,0.0003415,120]
[402699441,1768807007385,928.89,0.0003415,120]
[402699444,1768807007444,928.89,0.0003415,120]
[402699445,1768807007525,928.89,0.0003415,120]
[402699446,1768807007586,928.89,0.0003415,120]
[402699447,1768807007672,928.89,0.0003415,120]
[402699448,1768807007731,928.89,0.0003415,120]
[402699449,1768807007790,928.89,0.0003415,120]
[402699451,1768807007855,928.89,0.0003415,120]
[402699453,1768807007912,928.89,0.0003415,120]
[402699456,1768807007971,928.89,0.0003415,120]
[402699457,1768807008028,928.89,0.0003415,120]
[402699459,1768807008088,928.89,0.0003415,120]
[402699462,1768807008151,928.89,0.0003415,120]
[402699464,1768807008209,928.89,0.0003415,120]
[402699465,1768807008265,928.89,0.0003415,120]
[402699468,1768807008326,928.89,0.0003415,120]
[402699470,1768807008381,929.11934511,0.0003415,120]
[402699474,1768807008572,936.0,0.0003415,30]
[402700168,1768807048504,5000.0,0.00027397,120]
[402700438,1768807064357,5000.0,0.00027397,120]
[402700580,1768807072486,5000.0,0.00027397,120]
[402700843,1768807088286,5000.0,0.00027397,120]
[402700975,1768807096561,5000.0,0.00027397,120]
[402701778,1768807144388,500.0,0.00027397,120]
[402704374,1768807318912,-2156.63434713,0.00012294,14]
[402704376,1768807318942,-686.74130574,0.00012418,14]
[402705480,1768807455271,500.0,0.00027397,120]
[402705483,1768807460139,459.0,0.0001,10]
[402705537,1768807547419,617.8764,0.00027387,120]
[402705562,1768807641767,160.0,0.000273,120]
[402705563,1768807643047,160.0,0.000273,120]
[402705564,1768807662560,160.0,0.000273,120]
[402705565,1768807669461,160.0,0.000273,120]
[402705567,1768807674228,160.0,0.000273,120]
[402705568,1768807681022,160.0,0.000273,120]
[402705573,1768807682944,160.0,0.000273,120]
[402705591,1768807695690,162.54545332,0.000273,120]
[402705597,1768807765761,500.0,0.00027397,120]
[402705628,1768807831828,-5000.0,0.00011935,14]
[402705630,1768807831838,-264.51946364,0.00012056,2]
[402705681,1768807838186,-590.0,0.00012056,2]
[402705683,1768807838195,-282.43980055,0.00012242,2]
[402705684,1768807838204,-746.0457523,0.00012793,2]
[402705685,1768807838216,-418.49770858,0.00012793,2]
[402705686,1768807838232,-448.43185911,0.00011453,2]
[402705687,1768807838242,-35.45653912,0.00012793,2]
[402705688,1768807838252,-500.0,0.00012794,2]
[402705689,1768807838262,-215.95586962,0.00012794,2]
[402705690,1768807838272,-500.0,0.00012794,2]
[402705691,1768807838282,-500.0,0.00012794,2]
[402705692,1768807838291,-377.95038424,0.00012794,2]
[402705693,1768807838300,-500.0,0.00012794,2]
[402705694,1768807838309,-500.0,0.00012794,2]
[402705695,1768807838318,-500.0,0.00012794,2]
[402705696,1768807838327,-500.0,0.00012794,2]
[402705697,1768807838346,-500.0,0.00012794,2]
[402705698,1768807838362,-500.0,0.00012794,2]
[402705699,1768807838372,-471.39689182,0.00012794,2]
[402705700,1768807838381,-500.0,0.00012794,2]
[402705701,1768807838390,-500.0,0.00012794,2]
[402705702,1768807838399,-500.0,0.00012794,2]
[402705703,1768807838409,-500.0,0.00012794,2]
[402705704,1768807838418,-500.0,0.00012794,2]
[402705705,1768807838427,-500.0,0.00012794,2]
[402705706,1768807838436,-500.0,0.00012794,2]
[402705707,1768807838446,-500.0,0.00012794,2]
[402705708,1768807838456,-500.0,0.00012794,2]
[402705709,1768807838465,-500.0,0.00012794,2]
[402705710,1768807838475,-500.0,0.00012794,2]
[402705711,1768807838485,-500.0,0.00012794,2]
[402705712,1768807838497,-85.28936128,0.00012794,2]
[402705714,1768807838510,-414.71063872,0.00012794,2]
[402705716,1768807838519,-335.30836771,0.00012794,2]
[402705718,1768807838530,-500.0,0.00012794,2]
[402705720,1768807838540,-500.0,0.00012794,2]
[402705722,1768807838549,-500.0,0.00012794,2]
[402705724,1768807838560,-500.0,0.00012794,2]
[402705726,1768807838569,-500.0,0.00012794,2]
[402705728,1768807838579,-500.0,0.00012794,2]
[402705730,1768807838589,-500.0,0.00012794,2]
[402705732,1768807838598,-300.0,0.00012794,2]
[402705734,1768807838608,-300.0,0.00012794,2]
[402705736,1768807838618,-300.0,0.00012794,2]
[402705738,1768807838627,-300.0,0.00012794,2]
[402705740,1768807838638,-174.95572099,0.00012794,2]
[402705743,1768807838648,-50000.0,0.00012795,2]
[402705744,1768807838658,-12115.6385523,0.00012799,2]
[402705747,1768807838667,-151.0,0.000128,2]
[402705749,1768807838677,-151.0,0.000128,2]
[402705751,1768807838686,-151.0,0.000128,2]
[402705752,1768807838696,-151.0,0.000128,2]
[402705755,1768807838706,-151.0,0.000128,2]
[402705756,1768807838715,-16992.34322443,0.0001287,2]
[402705759,1768807838727,-30764.46480699,0.0001287,2]
[402705761,1768807838739,-4971.11304703,0.0001287,2]
[402705763,1768807838750,-8858.38237819,0.0001287,2]
[402705765,1768807838761,-10521.17056281,0.0001287,2]
[402705767,1768807838773,-3922.16002755,0.0001287,2]
[402705826,1768807840158,-526.30212007,0.0001287,2]
[402705829,1768807840175,-5804.79892051,0.0001287,2]
[402705831,1768807840186,-41406.95426698,0.0001287,2]
[402706113,1768807843072,-1980.85827928,0.00012672,14]
[402706116,1768807843083,-3019.14172072,0.00012672,14]
[402706118,1768807843093,-10715.0615411,0.0001287,2]
[402706170,1768807846013,-7024.94879854,0.0001287,2]
[402706171,1768807846025,-7199.33428489,0.0001287,2]
[402706173,1768807912452,500.0,0.00027397,120]
[402706175,1768807913956,500.0,0.00027397,120]
[402706178,1768807916946,500.0,0.00027397,120]
[402706180,1768807919975,500.0,0.00027397,120]
[402706182,1768807922952,500.0,0.00027397,120]
[402706183,1768807925943,500.0,0.00027397,120]
[402706185,1768807928961,500.0,0.00027397,120]
[402706186,1768807931956,500.0,0.00027397,120]
[402706187,1768807934957,500.0,0.00027397,120]
[402706188,1768807937952,500.0,0.00027397,120]
[402706189,1768807940958,500.0,0.00027397,120]
[402706190,1768807944153,500.0,0.00027397,120]
[402706191,1768807946953,500.0,0.00027397,120]
[402706192,1768807949960,500.0,0.00027397,120]
[402706193,1768807952959,500.0,0.00027397,120]
[402706194,1768807955968,500.0,0.00027397,120]
[402706196,1768807958969,500.0,0.00027397,120]
[402706198,1768807962165,500.0,0.00027397,120]
[402706199,1768807964986,500.0,0.00027397,120]
[402706200,1768807967961,500.0,0.00027397,120]
[402706201,1768807970963,500.0,0.00027397,120]
[402706208,1768808025968,500.0,0.00027397,120]
[402706209,1768808027448,500.0,0.00027397,120]
[402706210,1768808030454,500.0,0.00027397,120]
[402706211,1768808033455,509.17,0.00027397,120]
[402706213,1768808068305,-398.55490366,0.00011724,14]
[402706214,1768808069980,-356.90347793,0.00011724,14]
[402706215,1768808071703,-517.31860554,0.00011724,14]
[402706216,1768808073016,-157.43190386,0.00011724,14]
[402706217,1768808074650,-282.63540539,0.00011724,14]
[402706218,1768808075788,500.0,0.00027397,120]
[402706219,1768808077875,-296.61904294,0.00011724,14]
[402706220,1768808081110,-163.04901972,0.00011724,14]
[402706221,1768808084294,-392.35993336,0.00011724,14]
[402706222,1768808087017,-343.64897959,0.00011724,14]
[402706223,1768808088527,-181.56102041,0.00011724,14]
[402706224,1768808090040,-154.38,0.00011724,14]
[402706225,1768808091522,-791.93746355,0.00011724,14]
[402706226,1768808093987,-162.31579678,0.00011724,14]
[402706227,1768808097922,-223.13771395,0.00011724,14]
[402706228,1768808099522,-300.0,0.00011724,14]
[402706231,1768808102390,-250.05648491,0.00011724,14]
[402706232,1768808107565,180.0,0.00026548,120]
[402706240,1768808158360,-28.09024841,0.00011724,14]
[402706241,1768808158385,-728.18134914,0.00011842,14]
[402706242,1768808160264,-208.38898665,0.00011842,14]
[402706245,1768808161802,-229.07531038,0.00011607,14]
[402706247,1768808163954,-162.28116241,0.00011607,14]
[402706249,1768808166017,-206.1657517,0.00011607,14]
[402706252,1768808167526,-230.32907703,0.00011607,14]
[402706253,1768808169141,-207.38050303,0.00011607,14]
[402706256,1768808171159,-440.59077094,0.00011607,14]
[402706258,1768808174258,-271.82922906,0.00011607,14]
[402706259,1768808175852,-161.85024419,0.00011607,14]
[402706261,1768808178490,-315.8052525,0.00011607,14]
[402706263,1768808181898,-212.63828564,0.00011607,14]
[402706266,1768808186154,-357.47517775,0.00011607,14]
[402706267,1768808187607,-246.77588714,0.00011607,14]
[402706269,1768808191025,-500.0,0.00011607,14]
[402706270,1768808193228,-308.75,0.00011607,14]
[402706271,1768808195421,-200.83374673,0.00011607,14]
[402706272,1768808197684,-305.15704673,0.00011607,14]
[402706273,1768808199234,-182.83938508,0.00011607,14]
[402706294,1768808385907,500.0,0.00027397,120]
[402706298,1768808534393,-300.0,0.00011318,14]
[402706299,1768808536912,-212.22169975,0.00011318,14]
[402706300,1768808552907,162.28,0.00027397,120]
[402706305,1768808640840,916.16577334,0.00027397,120]
[402706306,1768808641131,1201.94,0.00027397,120]
[402706308,1768808693593,500.0,0.00027397,120]
[402706315,1768808819278,-208.39988975,0.00010655,14]
[402706316,1768808822077,-728.18134914,0.00010655,14]
[402706354,1768808917166,1130.5,0.000273,120]
[402706359,1768808930601,1000.0,0.000273,120]
[402706362,1768808998291,-517.31860554,0.00010548,14]
[402706363,1768809001336,500.0,0.00027397,120]
[402706364,1768809002725,-154.38,0.00010548,14]
[402706365,1768809005538,-356.90347793,0.00010443,14]
[402706367,1768809006991,-181.56102041,0.00010443,14]
[402706368,1768809008435,-282.63540539,0.00010443,14]
[402706370,1768809011226,-300.0,0.00010443,14]
[402706371,1768809014996,-343.64897959,0.00010443,14]
[402706372,1768809016647,-392.35993336,0.00010443,14]
[402706373,1768809019245,500.0,0.000273,120]
[402706374,1768809019877,-791.93746355,0.00010443,14]
[402706375,1768809020734,500.0,0.000273,120]
[402706377,1768809023161,-157.43190386,0.00010443,14]
[402706378,1768809023732,400.01,0.000273,120]
[402706379,1768809024834,-190.40604519,0.00010443,14]
[402706380,1768809029696,-296.61904294,0.00010443,14]
[402706418,1768809032040,-257.69378914,0.00010443,14]
[402706420,1768809032050,-4328.30139446,0.00010548,14]
[402706422,1768809032061,-289.03100454,0.00010709,2]
[402706424,1768809032070,-570.0,0.00010709,2]
[402706426,1768809032080,-300.0,0.00010761,2]
[402706427,1768809032090,-300.0,0.00010761,2]
[402706429,1768809032100,-1200.0,0.00010761,2]
[402706432,1768809032110,-5000.0,0.00010762,2]
[402706434,1768809032120,-602.3167582,0.00011091,2]
[402706436,1768809032129,-237.78544771,0.00011091,2]
[402706438,1768809032138,-50000.0,0.00011092,2]
[402706440,1768809032148,-420.0,0.00011828,2]
[402706442,1768809032157,-370.0,0.00011828,2]
[402706444,1768809032166,-480.0,0.00011837,2]
[402706446,1768809032176,-151.0,0.00011954,2]
[402706448,1768809032185,-190.88320984,0.00011954,2]
[402706449,1768809032194,-166.54,0.00012329,2]
[402706450,1768809032203,-445.202766,0.00012479,2]
[402706451,1768809032212,-151.0,0.00012479,2]
[402706452,1768809032222,-156.64558,0.00012479,2]
[402706453,1768809032231,-168.3888056,0.00012479,2]
[402706454,1768809032240,-151.0,0.00012479,2]
[402706455,1768809032249,-151.43815399,0.00012479,2]
[402706456,1768809032258,-162.380719,0.00012479,2]
[402706457,1768809032267,-2150.738,0.00012479,2]
[402706458,1768809032277,-168.3888056,0.00012479,2]
[402706459,1768809032289,-174.61919141,0.00012479,2]
[402706460,1768809032299,-181.08010149,0.00012479,2]
[402706461,1768809032308,-187.78006525,0.00012479,2]
[402706462,1768809032318,-194.72792766,0.00012479,2]
[402706463,1768809032328,-201.93286099,0.00012479,2]
[402706464,1768809032337,-209.40437684,0.00012479,2]
[402706465,1768809032348,-217.15233878,0.00012479,2]
[402706466,1768809032357,-225.18697532,0.00012479,2]
[402706467,1768809032366,-233.51889341,0.00012479,2]
[402706468,1768809032375,-242.15909246,0.00012479,2]
[402706469,1768809032385,-251.11897888,0.00012479,2]
[402706470,1768809032395,-260.4103811,0.00012479,2]
[402706471,1768809032404,-270.0455652,0.00012479,2]
[402706472,1768809032414,-280.03725112,0.00012479,2]
[402706473,1768809032424,-341.05658535,0.00012709,2]
[402706474,1768809032433,-39803.1689024,0.00012713,2]
[402706475,1768809032442,-3149.7496921,0.00012788,2]
[402706476,1768809032452,-151.0,0.000129,2]
[402706477,1768809032461,-151.0,0.000129,2]
[402706478,1768809032470,-151.0,0.000129,2]
[402706479,1768809032480,-151.0,0.000129,2]
[402706480,1768809032489,-151.0,0.000129,2]
[402706481,1768809032498,-151.0,0.000129,2]
[402706482,1768809032507,-151.0,0.000129,2]
[402706483,1768809032516,-151.0,0.000129,2]
[402706484,1768809032526,-286.28300628,0.00012971,2]
[402706485,1768809032535,-1143.98689309,0.00012971,2]
[402706486,1768809032544,-500.0,0.00012999,2]
[402706487,1768809032554,-153.00266868,0.00012999,2]
[402706488,1768809032563,-296.0,0.00013001,2]
[402706489,1768809032573,-461.67526834,0.00013027,2]
[402706490,1768809032583,-151.0,0.00013027,2]
[402706491,1768809032592,-2230.315306,0.00013027,2]
[402706492,1768809032601,-500.0,0.00013136,2]
[402706493,1768809032611,-332.12150729,0.00013273,2]
[402706494,1768809032620,-500.0,0.00013273,2]
[402706495,1768809032630,-500.0,0.00013273,2]
[402706496,1768809032639,-500.0,0.00013273,2]
[402706497,1768809032649,-500.0,0.00013273,2]
[402706498,1768809032658,-500.0,0.00013273,2]
[402706499,1768809032668,-500.0,0.00013273,2]
[402706500,1768809032677,-500.0,0.00013273,2]
[402706501,1768809032687,-500.0,0.00013273,2]
[402706502,1768809032696,-500.0,0.00013273,2]
[402706503,1768809032706,-500.0,0.00013273,2]
[402706504,1768809032715,-500.0,0.00013273,2]
[402706505,1768809032725,-500.0,0.00013273,2]
[402706506,1768809032735,-500.0,0.00013273,2]
[402706507,1768809032745,-500.0,0.00013273,2]
[402706508,1768809032754,-558.41887194,0.0001341,2]
[402706509,1768809032764,-478.75725327,0.00013575,2]
[402706510,1768809032774,-151.0,0.00013575,2]
[402706511,1768809032783,-2312.83697232,0.00013575,2]
[402706512,1768809032792,-500.0,0.00013698,2]
[402706513,1768809032803,-500.0,0.00013698,2]
[402706514,1768809032812,-500.0,0.00013698,2]
[402706515,1768809032821,-500.0,0.00013698,2]
[402706516,1768809032831,-500.0,0.00013698,2]
[402706517,1768809032840,-500.0,0.00013698,2]
[402706518,1768809032853,-500.0,0.00013698,2]
[402706519,1768809032863,-500.0,0.00013698,2]
[402706520,1768809032873,-500.0,0.00013698,2]
[402706521,1768809032883,-500.0,0.00013698,2]
[402706522,1768809032894,-500.0,0.00013698,2]
[402706523,1768809032904,-500.0,0.00013698,2]
[402706524,1768809032913,-500.0,0.00013698,2]
[402706525,1768809032924,-500.0,0.00013698,2]
[402706526,1768809032933,-1000.0,0.00013699,2]
[402706527,1768809032943,-1900.130465,0.00013699,2]
[402706528,1768809032953,-500.0,0.00013699,2]
[402706529,1768809032965,-526.67002344,0.00013699,2]
[402706530,1768809032975,-501.23330465,0.00013699,2]
[402706531,1768809032985,-500.0,0.00013699,2]
[402706532,1768809032994,-500.0,0.00013699,2]
[402706533,1768809033003,-253.24401436,0.00013699,2]
[402706534,1768809033013,-500.0,0.00013699,2]
[402706535,1768809033023,-500.0,0.00013699,2]
[402706536,1768809033032,-500.0,0.00013699,2]
[402706537,1768809033043,-500.0,0.00013699,2]
[402706538,1768809033052,-500.0,0.00013699,2]
[402706539,1768809033061,-500.0,0.00013699,2]
[402706540,1768809033072,-500.0,0.00013699,2]
[402706541,1768809033081,-500.0,0.00013699,2]
[402706542,1768809033091,-500.0,0.00013699,2]
[402706543,1768809033100,-500.0,0.00013699,2]
[402706544,1768809033110,-500.0,0.00013699,2]
[402706545,1768809033119,-504.95354358,0.00013699,2]
[402706546,1768809033128,-500.0,0.00013699,2]
[402706547,1768809033137,-519.9338454,0.00013699,2]
[402706548,1768809033147,-500.0,0.00013699,2]
[402706549,1768809033156,-500.0,0.00013699,2]
[402706550,1768809033165,-500.0,0.00013699,2]
[402706551,1768809033175,-500.0,0.00013699,2]
[402706552,1768809033184,-524.82863296,0.00013699,2]
[402706553,1768809033193,-500.0,0.0001382,2]
[402706554,1768809033203,-1000.0,0.00013821,2]
[402706555,1768809033212,-1000.0,0.00013821,2]
[402706556,1768809033222,-1000.0,0.00013821,2]
[402706557,1768809033231,-1000.0,0.00013821,2]
[402706558,1768809033241,-1000.0,0.00013821,2]
[402706559,1768809033250,-257.10874141,0.00014079,2]
[402706560,1768809033260,-496.47127164,0.00014123,2]
[402706561,1768809033270,-151.0,0.00014123,2]
[402706562,1768809033280,-2398.4119403,0.00014123,2]
[402706563,1768809033290,-821.92453922,0.0001419,2]
[402706564,1768809033299,-542.2968919,0.00014246,2]
[402706565,1768809033309,-827.60308577,0.00014247,2]
[402706567,1768809033318,-1000.0,0.00014247,2]
[402706568,1768809033328,-1001.58207676,0.00014247,2]
[402706569,1768809033337,-1000.0,0.00014247,2]
[402706570,1768809033347,-998.0,0.00014247,2]
[402706571,1768809033357,-1000.0,0.00014247,2]
[402706572,1768809033367,-592.31797826,0.00014368,2]
[402706573,1768809033376,-1500.0,0.00014368,2]
[402706574,1768809033386,-1081.43277668,0.00014368,2]
[402706575,1768809033399,-337.89635035,0.00014368,2]
[402706624,1768809038321,-500.0,0.0001109,2]
[402706626,1768809038331,-500.0,0.0001109,2]
[402706628,1768809038341,-500.0,0.0001109,2]
[402706630,1768809038352,-500.0,0.0001109,2]
[402706632,1768809038362,-500.0,0.0001109,2]
[402706634,1768809038373,-0.38270243,0.0001109,2]
[402706637,1768809038386,-499.61729757,0.0001109,2]
[402706639,1768809038396,-175.07478149,0.0001109,2]
[402706641,1768809038406,-179.52701487,0.0001109,2]
[402706642,1768809038416,-500.0,0.0001109,2]
[402706644,1768809038426,-500.0,0.0001109,2]
[402706646,1768809038435,-500.0,0.0001109,2]
[402706648,1768809038445,-500.0,0.0001109,2]
[402706651,1768809038455,-500.0,0.0001109,2]
[402706652,1768809038464,-163.48854354,0.00012329,2]
[402706654,1768809038474,-290.39862941,0.00012479,2]
[402706657,1768809038483,-301.1433787,0.00012479,2]
[402706659,1768809038493,-288.65028597,0.000129,2]
[402706762,1768809040735,-3e-08,0.00010979,14]
[402707021,1768809043302,-695.7,0.00010979,14]
[402707105,1768809046292,-1238.12349861,0.00010979,14]
[402707166,1768809307628,500.0,0.00027397,120]
[402707261,1768809524042,-5000.0,0.00010652,14]
[402707262,1768809524237,-5000.0,0.0001076,14]
[402707263,1768809526942,-5000.0,0.00010545,14]
[402707264,1768809530225,-276.42925274,0.00010924,2]
[402707265,1768809530264,-500.0,0.00011311,2]
[402707266,1768809530306,-549.68125182,0.00011311,2]
[402707267,1768809530345,-500.0,0.00011311,2]
[402707268,1768809530384,-500.0,0.00011311,2]
[402707269,1768809530415,-500.0,0.00011311,2]
[402707270,1768809530448,-500.0,0.00011311,2]
[402707271,1768809530481,-361.2298812,0.00011311,2]
[402707272,1768809530819,-175.07478149,0.00011311,2]
[402707273,1768809530850,-500.0,0.00011311,2]
[402707275,1768809531125,-2026.8708888,0.00011312,2]
[402707276,1768809533341,-10000.01,0.00011312,2]
[402707277,1768809533457,-4528.7874762,0.00011312,2]
[402707278,1768809533484,-942.4350476,0.00011312,2]
[402707314,1768809612981,946.1002574,0.00027397,120]
[402707384,1768809928507,-386.22413058,0.00010543,14]
[402707385,1768809933465,-250.05648491,0.00010438,14]
[402707386,1768809935040,-398.55490366,0.00010438,14]
[402707387,1768809936640,-182.83938508,0.00010438,14]
[402707388,1768809938086,-162.28116241,0.00010438,14]
[402707389,1768809941278,-308.75,0.00010438,14]
[402707390,1768809942838,-500.0,0.00010438,14]
[402707391,1768809944455,-200.83374673,0.00010438,14]
[402707392,1768809945951,-440.59077094,0.00010438,14]
[402707393,1768809947475,-357.47517775,0.00010438,14]
[402707394,1768809949887,-161.85024419,0.00010438,14]
[402707395,1768809951097,-230.32907703,0.00010438,14]
[402707398,1768809952877,-246.77588714,0.00010438,14]
[402707399,1768809956717,-229.07531038,0.00010438,14]
[402707401,1768809958787,-206.1657517,0.00010438,14]
[402707402,1768809960963,-305.15704673,0.00010438,14]
[402707403,1768809964240,-271.82922906,0.00010438,14]
[402707404,1768809966562,-207.38050303,0.00010438,14]
[402707405,1768809968573,-315.8052525,0.00010438,14]
[402707406,1768810011367,-24.25006676,0.00010438,14]
[402707407,1768810011396,-4613.77586942,0.00010543,14]
[402707408,1768810011427,-300.0,0.00010648,2]
[402707409,1768810011495,-123.95812764,0.00010649,14]
[402707410,1768810017734,-4876.04187236,0.00010649,14]
[402707411,1768810017772,-247.92625528,0.00010703,2]
[402707412,1768810023760,-5000.0,0.00010596,2]
[402707413,1768810023806,-0.01,0.00010703,2]
[402707445,1768810213274,-212.63828564,0.00010385,2]
[402707447,1768810232167,-534.54761844,0.00010281,2]
[402707448,1768810232182,-1046.39845533,0.00010281,2]
[402707451,1768810232194,-1297.71024577,0.00010281,2]
[402707453,1768810232203,-481.37471572,0.00010385,2]
[402707549,1768810238309,-2960.73088,0.00010281,2]
[402707550,1768810238321,-1074.99956033,0.00010281,2]
[402707551,1768810238333,-964.26955967,0.00010281,2]
[402707552,1768810238343,-2571.62962539,0.00010385,2]
[402707566,1768810240498,-675.61857851,0.00010385,2]
[402707567,1768810240510,-661.98869106,0.00010385,2]
[402707568,1768810240688,-3e-08,0.00010385,2]
[402707673,1768810243360,-396.75010365,0.00010385,2]
[402707675,1768810243373,-517.91443124,0.00010489,2]
[402707677,1768810243385,-567.0,0.0001049,2]
[402707679,1768810243395,-281.90069484,0.00010543,2]
[402707682,1768810243407,-300.0,0.00010702,2]
[402707683,1768810243418,-156.8168034,0.00011687,2]
[402707686,1768810243430,-341.05,0.00012329,2]
[402707688,1768810243443,-284.21,0.00012329,2]
[402707690,1768810243455,-236.84,0.00012329,2]
[402707692,1768810243467,-197.37,0.00012329,2]
[402707694,1768810243479,-164.47,0.00012329,2]
[402707695,1768810243491,-275.82796611,0.00012329,2]
[402707758,1768810246416,-5000.0,0.00012205,2]
[402707759,1768810246426,-546.56203389,0.00012329,2]
[402707760,1768810246437,-163.48854354,0.00012329,2]
[402707761,1768810246446,-332.64281991,0.00012543,2]
[402707762,1768810246456,-4991.3668845,0.00012686,2]
[402707763,1768810246466,-1878.75881868,0.000129,2]
[402707764,1768810246475,-445.202766,0.00012987,2]
[402707765,1768810246484,-151.0,0.00012987,2]
[402707766,1768810246493,-2150.738,0.00012987,2]
[402707767,1768810246503,-249.89908172,0.00012994,2]
[402707768,1768810246512,-588.68919735,0.00012994,2]
[402707769,1768810246522,-529192.18475402,0.00012995,2]
[402707783,1768810468263,-512.22360127,0.00010177,2]
[402707784,1768810478472,-4487.77639873,0.00010177,2]
[402707785,1768810478511,-1024.45720254,0.0001028,2]
[402707786,1768810485075,-3975.54279746,0.0001028,2]
[402707787,1768810485119,-512.22169975,0.00010177,2]
[402707788,1768810485128,-1536.70270533,0.00010384,2]
[402707789,1768810492221,-3463.29729467,0.00010384,2]
[402707801,1768810811656,627.84499153,0.00027397,120]
[402707802,1768810884440,1000.0,0.0001,14]
[402707803,1768810884462,1000.0,0.0001,14]
[402707804,1768810884485,1000.0,0.0001,14]
[402707805,1768810884510,1000.0,0.0001,14]
[402707806,1768810884534,223.0,0.0001,14]
[402707807,1768810884558,777.0,0.0001,14]
[402707808,1768810904204,-176.17981849,9.973e-05,2]
[402707809,1768810906939,-416.64399775,9.973e-05,2]
[402707810,1768810908168,4624.57286504,9.797e-05,2]
[402707811,1768810909113,-187.66332928,9.973e-05,2]
[402707812,1768810911209,-183.35600225,9.973e-05,2]
[402707813,1768810913306,-294.63023231,9.973e-05,2]
[402707814,1768810916085,-300.0,9.973e-05,2]
[402707815,1768810930183,2156.63434713,9.797e-05,2]
[402707817,1768811077178,176.0,0.00027397,120]
[402707819,1768811093946,3218.80278783,9.797e-05,2]
[402707820,1768811093973,1781.19721217,9.797e-05,2]
[402707836,1768811311162,5000.0,9.797e-05,2]
[402707839,1768811321282,500.0,0.00027397,120]
[402707870,1768811432341,-475.4221411,9.924e-05,2]
[402707873,1768811432354,-4524.5778589,9.924e-05,2]
[402707875,1768811432367,-559.0,9.924e-05,2]
[402707877,1768811432379,-185.72224718,0.00010024,2]
[402707879,1768811432391,-110.60636947,0.00010024,2]
[402707881,1768811432401,-219.64605779,0.00010174,2]
[402707883,1768811432412,-80.35394221,0.00010174,2]
[402707885,1768811432422,-300.0,0.00010174,2]
[402707887,1768811432431,-336.2992864,0.00010174,2]
[402707889,1768811432443,-863.7007136,0.00010174,2]
[402707891,1768811432452,-232.09885158,0.00010175,2]
[402707893,1768811432462,-360.84731063,0.00010175,2]